[Event "*** Monthly 3|2 Blitz Masters"]
[Site "Chess.com"]
[Date "2014.10.28"]
[Round "5"]
[White "chesstatour"]
[Black "AlmirDzhumaev"]
[Result "0-1"]
[WhiteElo "1793"]
[BlackElo "2195"]
[TimeControl "180+2"]
[EndTime "12:51:37 PDT"]
[Termination "AlmirDzhumaev won by resignation"]

1. c4 {[%clk 0:03:00]} 1... e5 {[%clk 0:02:56.9]} 2. Nc3 {[%clk 0:02:58.5]} 2...
Nc6 {[%clk 0:02:57.9]} 3. Nf3 {[%clk 0:02:58.1]} 3... g6 {[%clk 0:02:57.8]} 4.
d4 {[%clk 0:02:58]} 4... exd4 {[%clk 0:02:58.3]} 5. Nxd4 {[%clk 0:02:58.1]} 5...
Bg7 {[%clk 0:02:59.3]} 6. Nxc6 {[%clk 0:02:59.3]} 6... bxc6 {[%clk 0:02:59.7]}
7. g3 {[%clk 0:02:59.6]} 7... Ne7 {[%clk 0:02:59.9]} 8. Bg2 {[%clk 0:03:00.8]}
8... O-O {[%clk 0:03:01]} 9. O-O {[%clk 0:03:01.8]} 9... d6 {[%clk 0:03:00]} 10.
Qa4 {[%clk 0:02:52.4]} 10... Bd7 {[%clk 0:02:58.2]} 11. c5 {[%clk 0:02:48.9]}
11... d5 {[%clk 0:02:58.5]} 12. Bf4 {[%clk 0:02:44.3]} 12... a5 {[%clk
0:02:49.3]} 13. Rfd1 {[%clk 0:02:33.8]} 13... Qc8 {[%clk 0:02:40.2]} 14. e4
{[%clk 0:02:21.3]} 14... Rd8 {[%clk 0:02:28.7]} 15. Bg5 {[%clk 0:02:06.6]} 15...
f6 {[%clk 0:02:28.5]} 16. Bf4 {[%clk 0:01:14.2]} 16... Kh8 {[%clk 0:02:26.8]}
17. Qc2 {[%clk 0:01:05.9]} 17... Be6 {[%clk 0:02:27.3]} 18. Ne2 {[%clk
0:01:01.8]} 18... Bf7 {[%clk 0:02:22.4]} 19. Rac1 {[%clk 0:00:57]} 19... Qb7
{[%clk 0:02:22.7]} 20. b3 {[%clk 0:00:57.1]} 20... h5 {[%clk 0:02:10.9]} 21. h4
{[%clk 0:00:56.6]} 21... Kh7 {[%clk 0:02:10.3]} 22. Be3 {[%clk 0:00:55.1]} 22...
Bh6 {[%clk 0:02:05.9]} 23. Bxh6 {[%clk 0:00:54.5]} 23... Kxh6 {[%clk 0:02:06.5]}
24. Qc3 {[%clk 0:00:50.3]} 24... Kg7 {[%clk 0:02:06.3]} 25. Nf4 {[%clk
0:00:47.3]} 25... Qb4 {[%clk 0:02:05.4]} 26. exd5 {[%clk 0:00:40.6]} 26... Qxc3
{[%clk 0:02:03.7]} 27. Rxc3 {[%clk 0:00:39.6]} 27... cxd5 {[%clk 0:02:05.1]} 28.
c6 {[%clk 0:00:35.5]} 28... Ra6 {[%clk 0:01:59.7]} 29. Rdc1 {[%clk 0:00:31.7]}
29... Rd6 {[%clk 0:01:59.8]} 30. a3 {[%clk 0:00:24.1]} 30... g5 {[%clk
0:02:00.6]} 31. hxg5 {[%clk 0:00:20]} 31... fxg5 {[%clk 0:02:01.8]} 32. Nh3
{[%clk 0:00:21.1]} 32... Kg6 {[%clk 0:01:49.4]} 33. Re1 {[%clk 0:00:21.4]} 33...
Nxc6 {[%clk 0:01:48.5]} 34. Rec1 {[%clk 0:00:21.5]} 34... Rb6 {[%clk 0:01:44.8]}
35. Rc5 {[%clk 0:00:19.2]} 35... Nd4 {[%clk 0:01:45.9]} 36. Bf1 {[%clk
0:00:09.2]} 36... Nxb3 {[%clk 0:01:46.4]} 37. Bd3+ {[%clk 0:00:07.8]} 37... Kh6
{[%clk 0:01:45.9]} 38. Rxc7 {[%clk 0:00:06.9]} 38... Bg6 {[%clk 0:01:42.1]} 39.
Bxg6 {[%clk 0:00:05.3]} 39... Kxg6 {[%clk 0:01:42.5]} 40. R1c2 {[%clk 0:00:04]}
40... Nd4 {[%clk 0:01:43.1]} 41. Ra2 {[%clk 0:00:02.3]} 41... Rb1+ {[%clk
0:01:41.8]} 42. Kg2 {[%clk 0:00:03.3]} 42... g4 {[%clk 0:01:38.7]} 43. Nf4+
{[%clk 0:00:03.5]} 43... Kh6 {[%clk 0:01:39.6]} 44. Rc8 {[%clk 0:00:04.2]} 44...
Nf3 {[%clk 0:01:40.3]} 45. Rh8+ {[%clk 0:00:04.4]} 45... Kg7 {[%clk 0:01:41.3]}
46. Nxh5+ {[%clk 0:00:02.5]} 46... Kxh8 {[%clk 0:01:42]} 0-1

[Event "*** Monthly 3|2 Blitz Masters"]
[Site "Chess.com"]
[Date "2014.10.28"]
[Round "5"]
[White "Alexander_Donchenko"]
[Black "Trendle"]
[Result "1-0"]
[WhiteElo "2325"]
[BlackElo "2201"]
[TimeControl "180+2"]
[EndTime "12:51:40 PDT"]
[Termination "Alexander_Donchenko won by resignation"]

1. d4 {[%clk 0:03:00]} 1... f5 {[%clk 0:02:57.3]} 2. g3 {[%clk 0:03:00.4]} 2...
Nf6 {[%clk 0:02:57.2]} 3. Bg2 {[%clk 0:03:01.6]} 3... g6 {[%clk 0:02:58.9]} 4.
Nf3 {[%clk 0:03:02.6]} 4... Bg7 {[%clk 0:03:00.6]} 5. O-O {[%clk 0:03:03.8]}
5... O-O {[%clk 0:03:02.2]} 6. b3 {[%clk 0:03:05.2]} 6... Nc6 {[%clk 0:02:58]}
7. Bb2 {[%clk 0:03:05.8]} 7... e6 {[%clk 0:02:58.3]} 8. c4 {[%clk 0:03:06]} 8...
Ne4 {[%clk 0:02:54.4]} 9. Nbd2 {[%clk 0:03:05.5]} 9... d5 {[%clk 0:02:47.3]} 10.
e3 {[%clk 0:02:55.9]} 10... a5 {[%clk 0:02:47.7]} 11. a3 {[%clk 0:02:56.4]}
11... Qd6 {[%clk 0:02:45.2]} 12. Rc1 {[%clk 0:02:55.2]} 12... b6 {[%clk
0:02:39.2]} 13. Qc2 {[%clk 0:02:52.2]} 13... Bb7 {[%clk 0:02:33.4]} 14. Rfd1
{[%clk 0:02:52.4]} 14... Rac8 {[%clk 0:02:33.7]} 15. Ne1 {[%clk 0:02:48.5]}
15... Ne7 {[%clk 0:02:27.8]} 16. Nd3 {[%clk 0:02:48.9]} 16... g5 {[%clk
0:02:25.7]} 17. f3 {[%clk 0:02:43.1]} 17... Nxd2 {[%clk 0:02:24.7]} 18. Qxd2
{[%clk 0:02:45]} 18... Ng6 {[%clk 0:02:24.9]} 19. c5 {[%clk 0:02:42.8]} 19...
Qe7 {[%clk 0:02:24.2]} 20. b4 {[%clk 0:02:40]} 20... axb4 {[%clk 0:02:24.8]} 21.
axb4 {[%clk 0:02:40]} 21... Ba6 {[%clk 0:02:25]} 22. Ra1 {[%clk 0:02:33.6]}
22... Bc4 {[%clk 0:02:25.1]} 23. Ra7 {[%clk 0:02:30.2]} 23... b5 {[%clk
0:02:15.4]} 24. f4 {[%clk 0:02:20.7]} 24... Ra8 {[%clk 0:02:06.2]} 25. Rda1
{[%clk 0:02:20.4]} 25... Rxa7 {[%clk 0:02:04.8]} 26. Rxa7 {[%clk 0:02:22.3]}
26... g4 {[%clk 0:01:50.1]} 27. Bc3 {[%clk 0:02:22.6]} 27... h5 {[%clk
0:01:40.4]} 28. Nb2 {[%clk 0:02:23.3]} 28... h4 {[%clk 0:01:41.5]} 29. Nxc4
{[%clk 0:02:21.2]} 29... bxc4 {[%clk 0:01:43.4]} 30. b5 {[%clk 0:02:20.1]} 30...
Qe8 {[%clk 0:01:33.8]} 31. Qb2 {[%clk 0:02:16.7]} 31... Qb8 {[%clk 0:01:33.5]}
32. b6 {[%clk 0:02:11.2]} 32... cxb6 {[%clk 0:01:32.2]} 33. cxb6 {[%clk
0:02:13.1]} 33... Bf6 {[%clk 0:01:27.2]} 34. Qb5 {[%clk 0:02:08]} 34... Ne7
{[%clk 0:01:25]} 35. Bb4 {[%clk 0:02:03.2]} 35... Nc8 {[%clk 0:01:15.3]} 36.
Bxf8 {[%clk 0:01:57.3]} 36... Nxa7 {[%clk 0:01:12.4]} 37. bxa7 {[%clk
0:01:58.3]} 37... Qxb5 {[%clk 0:01:02.3]} 38. a8=Q {[%clk 0:01:59]} 38... Qb1+
{[%clk 0:00:57.3]} 39. Bf1 {[%clk 0:01:59.7]} 39... hxg3 {[%clk 0:00:40.5]} 40.
hxg3 {[%clk 0:01:49.4]} 40... Kf7 {[%clk 0:00:41.4]} 41. Bd6 {[%clk 0:01:05.7]}
41... Qe1 {[%clk 0:00:42]} 42. Qf8+ {[%clk 0:01:06.3]} 42... Kg6 {[%clk
0:00:43.6]} 43. Qg8+ {[%clk 0:01:02.7]} 43... Bg7 {[%clk 0:00:34.6]} 44. Qxe6+
{[%clk 0:01:03.4]} 44... Bf6 {[%clk 0:00:36.1]} 45. Qe8+ {[%clk 0:01:03.7]}
45... Kh7 {[%clk 0:00:30.1]} 46. Qf7+ {[%clk 0:01:01.9]} 1-0

[Event "*** Monthly 3|2 Blitz Masters"]
[Site "Chess.com"]
[Date "2014.10.28"]
[Round "5"]
[White "GedoGluperd"]
[Black "brauliocuarta"]
[Result "1-0"]
[WhiteElo "2284"]
[BlackElo "1968"]
[TimeControl "180+2"]
[EndTime "12:52:13 PDT"]
[Termination "GedoGluperd won on time"]

1. d4 {[%clk 0:03:00]} 1... Nf6 {[%clk 0:02:57.7]} 2. Bg5 {[%clk 0:03:00.3]}
2... Ne4 {[%clk 0:02:57.3]} 3. Bf4 {[%clk 0:03:00.8]} 3... g5 {[%clk 0:02:55.1]}
4. Bc1 {[%clk 0:03:00.8]} 4... c5 {[%clk 0:02:53.1]} 5. f3 {[%clk 0:03:00.9]}
5... Nf6 {[%clk 0:02:51.4]} 6. Bxg5 {[%clk 0:03:00.8]} 6... Bg7 {[%clk
0:02:45.2]} 7. e3 {[%clk 0:02:57.4]} 7... Qb6 {[%clk 0:02:43.2]} 8. b3 {[%clk
0:02:49.6]} 8... cxd4 {[%clk 0:02:18]} 9. exd4 {[%clk 0:02:46.4]} 9... Nc6
{[%clk 0:02:16.7]} 10. c3 {[%clk 0:02:45.4]} 10... d6 {[%clk 0:02:07.6]} 11. Nd2
{[%clk 0:02:44.3]} 11... Qa5 {[%clk 0:02:08]} 12. Bxf6 {[%clk 0:02:40.4]} 12...
Bxf6 {[%clk 0:02:06.1]} 13. Qc2 {[%clk 0:02:40.8]} 13... b5 {[%clk 0:01:51.1]}
14. b4 {[%clk 0:02:27.5]} 14... Qb6 {[%clk 0:01:46]} 15. Ne4 {[%clk 0:02:28.2]}
15... Bg7 {[%clk 0:01:42.6]} 16. Bd3 {[%clk 0:02:27.5]} 16... Bd7 {[%clk
0:01:34]} 17. Ne2 {[%clk 0:02:26.4]} 17... Rc8 {[%clk 0:01:34.7]} 18. Qd2 {[%clk
0:02:22.1]} 18... h6 {[%clk 0:01:31.3]} 19. O-O {[%clk 0:02:22.5]} 19... e5
{[%clk 0:01:26.3]} 20. Rae1 {[%clk 0:02:18.7]} 20... Kf8 {[%clk 0:01:26.3]} 21.
Nxd6 {[%clk 0:02:15.8]} 21... Rc7 {[%clk 0:01:07.8]} 22. Nxb5 {[%clk 0:02:13.6]}
22... exd4 {[%clk 0:01:08.7]} 23. Nbxd4 {[%clk 0:02:09.5]} 23... Nxd4 {[%clk
0:01:07.4]} 24. Nxd4 {[%clk 0:02:08.9]} 24... Rxc3 {[%clk 0:01:07.5]} 25. Re4
{[%clk 0:01:21.3]} 25... Bxd4+ {[%clk 0:01:05.3]} 26. Kh1 {[%clk 0:01:22.2]}
26... Bg7 {[%clk 0:00:55.7]} 27. Bc4 {[%clk 0:01:23.4]} 27... Bf5 {[%clk
0:00:45.6]} 28. Rf4 {[%clk 0:01:18.9]} 28... Bg6 {[%clk 0:00:28.2]} 29. h4
{[%clk 0:01:06.1]} 29... Rc2 {[%clk 0:00:23.7]} 30. Qd7 {[%clk 0:01:04.1]} 30...
Rxc4 {[%clk 0:00:18.4]} 31. Rxc4 {[%clk 0:01:02.7]} 31... Kg8 {[%clk 0:00:19.4]}
32. a4 {[%clk 0:01:00.7]} 32... Qe6 {[%clk 0:00:15.2]} 33. Qc7 {[%clk
0:00:52.8]} 33... Kh7 {[%clk 0:00:13]} 34. b5 {[%clk 0:00:52.9]} 34... Bd3
{[%clk 0:00:13.2]} 35. Rc6 {[%clk 0:00:50.7]} 35... Qe2 {[%clk 0:00:09.8]} 36.
Rfc1 {[%clk 0:00:49.1]} 36... Bb2 {[%clk 0:00:08.3]} 37. Qxf7+ {[%clk
0:00:47.2]} 37... Bg7 {[%clk 0:00:09.3]} 38. Rc7 {[%clk 0:00:46.1]} 38... Qe5
{[%clk 0:00:08.7]} 39. Re7 {[%clk 0:00:42.3]} 39... Qb2 {[%clk 0:00:07.2]} 40.
Rd1 {[%clk 0:00:42.5]} 40... Bg6 {[%clk 0:00:06.2]} 41. Qd5 {[%clk 0:00:42]}
41... Rg8 {[%clk 0:00:05.4]} 42. h5 {[%clk 0:00:43.1]} 42... Bc2 {[%clk
0:00:03.9]} 43. Rd4 {[%clk 0:00:43.1]} 1-0

[Event "*** Monthly 3|2 Blitz Masters"]
[Site "Chess.com"]
[Date "2014.10.28"]
[Round "5"]
[White "jbj"]
[Black "ruzomberok"]
[Result "1-0"]
[WhiteElo "2280"]
[BlackElo "2213"]
[TimeControl "180+2"]
[EndTime "12:52:49 PDT"]
[Termination "jbj won by checkmate"]

1. e4 {[%clk 0:03:00]} 1... e5 {[%clk 0:02:54.7]} 2. Nf3 {[%clk 0:03:00.7]} 2...
Nc6 {[%clk 0:02:55.3]} 3. Bc4 {[%clk 0:03:01.5]} 3... Nf6 {[%clk 0:02:55.2]} 4.
d3 {[%clk 0:03:01.2]} 4... Be7 {[%clk 0:02:54.1]} 5. c3 {[%clk 0:03:02]} 5...
O-O {[%clk 0:02:53.8]} 6. Bb3 {[%clk 0:03:03.4]} 6... d5 {[%clk 0:02:53.1]} 7.
Qe2 {[%clk 0:03:03.9]} 7... dxe4 {[%clk 0:02:49.1]} 8. dxe4 {[%clk 0:03:04.5]}
8... Bc5 {[%clk 0:02:49.4]} 9. O-O {[%clk 0:03:04.8]} 9... h6 {[%clk 0:02:49.9]}
10. Rd1 {[%clk 0:03:03.6]} 10... Qe7 {[%clk 0:02:51.1]} 11. h3 {[%clk
0:03:00.8]} 11... Be6 {[%clk 0:02:52]} 12. Be3 {[%clk 0:02:58.8]} 12... Bxb3
{[%clk 0:02:48.8]} 13. axb3 {[%clk 0:02:59.3]} 13... Nxe4 {[%clk 0:02:50.2]} 14.
b4 {[%clk 0:02:36.7]} 14... Bxe3 {[%clk 0:02:49.5]} 15. Qxe3 {[%clk 0:02:37.6]}
15... Nd6 {[%clk 0:02:49.3]} 16. Rd5 {[%clk 0:02:14]} 16... Qe6 {[%clk
0:02:29.1]} 17. Rc5 {[%clk 0:02:11.5]} 17... Nc4 {[%clk 0:02:25.6]} 18. Qe2
{[%clk 0:02:10.4]} 18... e4 {[%clk 0:02:17.9]} 19. Rxc4 {[%clk 0:01:44.8]} 19...
exf3 {[%clk 0:02:16]} 20. Qxe6 {[%clk 0:01:45.8]} 20... fxe6 {[%clk 0:02:17]}
21. b5 {[%clk 0:01:47.1]} 21... Ne5 {[%clk 0:02:16.3]} 22. Rxc7 {[%clk
0:01:46.7]} 22... fxg2 {[%clk 0:02:17.6]} 23. Kxg2 {[%clk 0:01:46.3]} 23... Nd3
{[%clk 0:02:18.5]} 24. f3 {[%clk 0:01:40.5]} 24... Ne1+ {[%clk 0:02:19.5]} 25.
Kh2 {[%clk 0:01:28.3]} 25... Nxf3+ {[%clk 0:02:13.9]} 26. Kg3 {[%clk 0:01:28.4]}
26... Ng5 {[%clk 0:02:15]} 27. Nd2 {[%clk 0:01:26.7]} 27... Rad8 {[%clk
0:02:13.5]} 28. h4 {[%clk 0:01:18.1]} 28... Rd3+ {[%clk 0:02:09.6]} 29. Kg4
{[%clk 0:01:18.7]} 29... Rxd2 {[%clk 0:01:44.1]} 30. hxg5 {[%clk 0:01:18.3]}
30... Rg2+ {[%clk 0:01:45.3]} 31. Kh3 {[%clk 0:01:18.9]} 31... Rxg5 {[%clk
0:01:46]} 32. Rxa7 {[%clk 0:01:15.4]} 32... Rf3+ {[%clk 0:01:45.8]} 33. Kh2
{[%clk 0:01:12.7]} 33... Rf2+ {[%clk 0:01:43.7]} 34. Kh3 {[%clk 0:01:09.8]}
34... Rf1 {[%clk 0:01:41.6]} 35. Kh2 {[%clk 0:01:07.7]} 35... h5 {[%clk
0:01:27.9]} 36. Raxb7 {[%clk 0:00:59.8]} 36... h4 {[%clk 0:01:28.2]} 37. Rc4
{[%clk 0:00:48.9]} 37... Rf2+ {[%clk 0:01:25.7]} 38. Kh3 {[%clk 0:00:47.4]}
38... Rg3+ {[%clk 0:01:11.4]} 39. Kxh4 {[%clk 0:00:48]} 39... Rg1 {[%clk
0:01:12.6]} 40. Rg4 {[%clk 0:00:42.8]} 40... Rh2+ {[%clk 0:01:03.8]} 41. Kg5
{[%clk 0:00:43.1]} 41... Rf1 {[%clk 0:01:02.4]} 42. Rb8+ {[%clk 0:00:39.6]}
42... Kf7 {[%clk 0:00:57.8]} 43. Rf4+ {[%clk 0:00:40.5]} 43... Rxf4 {[%clk
0:00:58.6]} 44. Kxf4 {[%clk 0:00:42.4]} 44... Rxb2 {[%clk 0:01:00.5]} 45. Ke5
{[%clk 0:00:39.7]} 45... Re2+ {[%clk 0:00:57.8]} 46. Kd4 {[%clk 0:00:39.7]}
46... Ke7 {[%clk 0:00:57.8]} 47. c4 {[%clk 0:00:40.6]} 47... Kd7 {[%clk
0:00:56.8]} 48. Rb7+ {[%clk 0:00:40.6]} 48... Kc8 {[%clk 0:00:56.8]} 49. Rxg7
{[%clk 0:00:41.2]} 49... Rd2+ {[%clk 0:00:58.7]} 50. Kc5 {[%clk 0:00:41.4]}
50... e5 {[%clk 0:00:59.6]} 51. Re7 {[%clk 0:00:41.8]} 51... Re2 {[%clk
0:01:00.4]} 52. Kc6 {[%clk 0:00:42.3]} 52... Kd8 {[%clk 0:01:00.9]} 53. Rd7+
{[%clk 0:00:42.7]} 53... Ke8 {[%clk 0:01:01.8]} 54. c5 {[%clk 0:00:43.3]} 54...
e4 {[%clk 0:01:03]} 55. b6 {[%clk 0:00:43]} 55... e3 {[%clk 0:01:04.1]} 56. b7
{[%clk 0:00:44.3]} 56... Rb2 {[%clk 0:01:05.2]} 57. Rd4 {[%clk 0:00:42]} 57...
e2 {[%clk 0:01:03.1]} 58. Re4+ {[%clk 0:00:41.7]} 58... Kd8 {[%clk 0:01:04.3]}
59. Rxe2 {[%clk 0:00:42.3]} 59... Rb6+ {[%clk 0:01:04.7]} 60. Kxb6 {[%clk
0:00:40.8]} 60... Kd7 {[%clk 0:01:05.9]} 61. c6+ {[%clk 0:00:40.4]} 61... Kd6
{[%clk 0:01:06.9]} 62. c7 {[%clk 0:00:40.8]} 62... Kd7 {[%clk 0:01:07.7]} 63.
c8=Q+ {[%clk 0:00:41]} 63... Kd6 {[%clk 0:01:09]} 64. Qc6# {[%clk 0:00:41.1]}
1-0

[Event "*** Monthly 3|2 Blitz Masters"]
[Site "Chess.com"]
[Date "2014.10.28"]
[Round "5"]
[White "oggy1984"]
[Black "liczner"]
[Result "0-1"]
[WhiteElo "2222"]
[BlackElo "2412"]
[TimeControl "180+2"]
[EndTime "12:52:53 PDT"]
[Termination "liczner won on time"]

1. e4 {[%clk 0:03:00]} 1... c5 {[%clk 0:02:58.7]} 2. Ne2 {[%clk 0:02:59.1]} 2...
Nc6 {[%clk 0:02:56.9]} 3. Nbc3 {[%clk 0:03:00]} 3... g6 {[%clk 0:02:56.8]} 4. g3
{[%clk 0:03:00.8]} 4... Bg7 {[%clk 0:02:57.4]} 5. Bg2 {[%clk 0:03:02.3]} 5... e6
{[%clk 0:02:55.4]} 6. O-O {[%clk 0:03:03.6]} 6... Nge7 {[%clk 0:02:56.9]} 7. d3
{[%clk 0:03:04.3]} 7... O-O {[%clk 0:02:57.1]} 8. f4 {[%clk 0:03:01.5]} 8... d6
{[%clk 0:02:51.3]} 9. h3 {[%clk 0:03:00.7]} 9... Rb8 {[%clk 0:02:49.8]} 10. a4
{[%clk 0:02:57.6]} 10... a6 {[%clk 0:02:50.7]} 11. g4 {[%clk 0:02:58.4]} 11...
b5 {[%clk 0:02:51]} 12. axb5 {[%clk 0:03:00.3]} 12... axb5 {[%clk 0:02:52.9]}
13. Ng3 {[%clk 0:03:01.9]} 13... Nd4 {[%clk 0:02:45.9]} 14. h4 {[%clk
0:02:45.1]} 14... f5 {[%clk 0:02:35.7]} 15. g5 {[%clk 0:02:26.9]} 15... Bb7
{[%clk 0:01:42.2]} 16. h5 {[%clk 0:02:19.9]} 16... Qd7 {[%clk 0:01:40.8]} 17.
Be3 {[%clk 0:02:09.8]} 17... b4 {[%clk 0:01:31.3]} 18. Na4 {[%clk 0:01:59.6]}
18... Bc6 {[%clk 0:01:07.4]} 19. b3 {[%clk 0:01:49.2]} 19... Ra8 {[%clk
0:00:53.9]} 20. hxg6 {[%clk 0:01:23.4]} 20... hxg6 {[%clk 0:00:53.7]} 21. Nb6
{[%clk 0:01:09.9]} 21... Rxa1 {[%clk 0:00:52.5]} 22. Qxa1 {[%clk 0:01:09.3]}
22... Qc7 {[%clk 0:00:39.8]} 23. Qa6 {[%clk 0:00:45.8]} 23... Nxc2 {[%clk
0:00:39.3]} 24. Bf2 {[%clk 0:00:36.2]} 24... fxe4 {[%clk 0:00:25.4]} 25. Nxe4
{[%clk 0:00:33.7]} 25... Rxf4 {[%clk 0:00:25]} 26. Bg3 {[%clk 0:00:25.4]} 26...
Rxf1+ {[%clk 0:00:23.3]} 27. Bxf1 {[%clk 0:00:26.5]} 27... Nf5 {[%clk
0:00:23.9]} 28. Bh2 {[%clk 0:00:24]} 28... Ncd4 {[%clk 0:00:17.6]} 29. Bg2
{[%clk 0:00:21.5]} 29... Qb7 {[%clk 0:00:15.1]} 30. Qxb7 {[%clk 0:00:14]} 30...
Bxb7 {[%clk 0:00:17]} 31. Nxd6 {[%clk 0:00:11.8]} 31... Bxg2 {[%clk 0:00:16.5]}
32. Kxg2 {[%clk 0:00:13.7]} 32... Nxb3 {[%clk 0:00:15.3]} 33. Ne4 {[%clk
0:00:06.1]} 33... Bd4 {[%clk 0:00:11]} 34. Nd7 {[%clk 0:00:05.8]} 34... Kf7
{[%clk 0:00:09.3]} 35. Ne5+ {[%clk 0:00:02.8]} 35... Bxe5 {[%clk 0:00:09.1]} 36.
Bxe5 {[%clk 0:00:04.7]} 36... Nc1 {[%clk 0:00:10.7]} 37. Nxc5 {[%clk 0:00:04.5]}
37... Ne3+ {[%clk 0:00:09.3]} 38. Kf3 {[%clk 0:00:04.6]} 38... Nd5 {[%clk
0:00:10.8]} 39. Kf2 {[%clk 0:00:03.7]} 39... Ke7 {[%clk 0:00:07.7]} 40. Ke1
{[%clk 0:00:02.3]} 40... Na2 {[%clk 0:00:08.7]} 41. Kd2 {[%clk 0:00:02.5]} 41...
Nac3 {[%clk 0:00:07.4]} 0-1

[Event "*** Monthly 3|2 Blitz Masters"]
[Site "Chess.com"]
[Date "2014.10.28"]
[Round "5"]
[White "David_Klein"]
[Black "vovkcoach"]
[Result "0-1"]
[WhiteElo "2364"]
[BlackElo "2518"]
[TimeControl "180+2"]
[EndTime "12:52:55 PDT"]
[Termination "vovkcoach won by resignation"]

1. e4 {[%clk 0:03:00]} 1... c5 {[%clk 0:02:58.3]} 2. Nf3 {[%clk 0:03:00.8]} 2...
e6 {[%clk 0:02:59.5]} 3. g3 {[%clk 0:02:59.2]} 3... Nc6 {[%clk 0:02:58.1]} 4.
Bg2 {[%clk 0:03:00.1]} 4... Nf6 {[%clk 0:02:59.6]} 5. Qe2 {[%clk 0:02:59.9]}
5... d6 {[%clk 0:03:00.5]} 6. O-O {[%clk 0:03:00.1]} 6... Be7 {[%clk 0:03:02]}
7. c3 {[%clk 0:03:01.2]} 7... O-O {[%clk 0:03:03.4]} 8. Rd1 {[%clk 0:03:01.4]}
8... Bd7 {[%clk 0:02:48.5]} 9. d4 {[%clk 0:02:55.9]} 9... cxd4 {[%clk
0:02:50.4]} 10. cxd4 {[%clk 0:02:57.8]} 10... d5 {[%clk 0:02:51.3]} 11. e5
{[%clk 0:02:57.1]} 11... Ne4 {[%clk 0:02:52.6]} 12. Be3 {[%clk 0:02:56.5]} 12...
Qb6 {[%clk 0:02:47.3]} 13. Ne1 {[%clk 0:02:40.8]} 13... f5 {[%clk 0:02:46]} 14.
f3 {[%clk 0:02:25.6]} 14... Ng5 {[%clk 0:02:37]} 15. Nd3 {[%clk 0:02:20.1]}
15... Nxd4 {[%clk 0:02:23.1]} 16. Qf2 {[%clk 0:02:19.6]} 16... Ndxf3+ {[%clk
0:02:23.8]} 17. Bxf3 {[%clk 0:01:36.6]} 17... Nh3+ {[%clk 0:02:19.7]} 18. Kg2
{[%clk 0:01:37.6]} 18... Nxf2 {[%clk 0:02:21.6]} 19. Bxb6 {[%clk 0:01:38.9]}
19... Nxd1 {[%clk 0:02:20.4]} 20. Bd4 {[%clk 0:01:39.2]} 20... Nxb2 {[%clk
0:02:14.8]} 21. Nxb2 {[%clk 0:01:27.8]} 21... Rac8 {[%clk 0:01:59]} 22. Nc3
{[%clk 0:01:21.3]} 22... f4 {[%clk 0:01:50.1]} 23. Nd3 {[%clk 0:01:01.1]} 23...
fxg3 {[%clk 0:01:49.8]} 24. hxg3 {[%clk 0:01:02]} 24... Rc4 {[%clk 0:01:47.2]}
25. Ne2 {[%clk 0:01:02.9]} 25... Rc2 {[%clk 0:01:46]} 26. Rb1 {[%clk 0:00:59.2]}
26... b6 {[%clk 0:01:36.8]} 27. Kf2 {[%clk 0:00:43.5]} 27... Be8 {[%clk
0:01:33.4]} 28. Ke3 {[%clk 0:00:43.1]} 28... Rxa2 {[%clk 0:01:23.6]} 29. Nef4
{[%clk 0:00:43.5]} 29... Ra3 {[%clk 0:01:11.6]} 30. Rc1 {[%clk 0:00:37.3]} 30...
Bb5 {[%clk 0:01:07.1]} 31. Rc7 {[%clk 0:00:25]} 31... Bg5 {[%clk 0:01:05.7]} 32.
Be2 {[%clk 0:00:22.4]} 32... Bxf4+ {[%clk 0:00:55.3]} 33. gxf4 {[%clk
0:00:20.5]} 33... h5 {[%clk 0:00:57.2]} 34. Bb2 {[%clk 0:00:15.7]} 34... Rb3
{[%clk 0:00:56.4]} 35. Bd4 {[%clk 0:00:16.4]} 35... h4 {[%clk 0:00:56.6]} 36.
Rxa7 {[%clk 0:00:16.9]} 36... Rb1 {[%clk 0:00:48]} 37. Rb7 {[%clk 0:00:17.2]}
37... Ba6 {[%clk 0:00:45.1]} 38. Rxb6 {[%clk 0:00:16.3]} 38... Rxb6 {[%clk
0:00:45.8]} 39. Bxb6 {[%clk 0:00:18.2]} 39... h3 {[%clk 0:00:47.7]} 40. Bf3
{[%clk 0:00:19.5]} 40... Bxd3 {[%clk 0:00:47.1]} 41. Kxd3 {[%clk 0:00:19.3]}
41... Rxf4 {[%clk 0:00:48.5]} 42. Ke3 {[%clk 0:00:20.9]} 42... Rb4 {[%clk
0:00:43.8]} 43. Ba5 {[%clk 0:00:19.7]} 43... Rb3+ {[%clk 0:00:38.1]} 44. Kf2
{[%clk 0:00:20.6]} 44... h2 {[%clk 0:00:34.9]} 45. Bh1 {[%clk 0:00:21.9]} 45...
Rb1 {[%clk 0:00:34.6]} 46. Kg2 {[%clk 0:00:23]} 46... Rb2+ {[%clk 0:00:33.4]}
47. Kg3 {[%clk 0:00:24.3]} 47... d4 {[%clk 0:00:33.8]} 48. Be4 {[%clk
0:00:22.6]} 48... Re2 {[%clk 0:00:33.1]} 49. Bh1 {[%clk 0:00:23.3]} 49... d3
{[%clk 0:00:34]} 50. Kf3 {[%clk 0:00:23]} 50... Ra2 {[%clk 0:00:32.7]} 51. Bc3
{[%clk 0:00:23.3]} 51... Ra3 {[%clk 0:00:28]} 52. Bd2 {[%clk 0:00:24.3]} 52...
Ra1 {[%clk 0:00:29.1]} 0-1